Workbook

Sheet Přehledy
A1: Přehled vystavených faktur | I1: Obraty | L1: Obory činnosti OSVČ
I2: Rok | J2: Celkem | L2: Poradenství v oblasti informačních technologií
A3: Fa. číslo | C3: Datum | D3: Odběratel | E3: Kč | F3: Platba | G3: Pozn. | I3: 2017 | J3: 120000 | L3: Instalace a konfigurace software
A4: =Nastavení!$B$18 -> 2018 | B4: 1 | C4: 2018-01-02 | D4: Odběratel 1 | E4: 10000 | F4: 2018-01-09 | I4: 2018 | J4: 150000 | L4: Poradenská činnost v IT, zpracování posudků, dodávka hardware
A5: =Nastavení!$B$18 -> 2018 | B5: =IF(C4="","",B4+1) -> 2 | C5: 2018-01-02 | D5: Odběratel 2 | E5: 15000 | F5: 2018-01-09 | I5: 2019 | J5: 0
A6: =Nastavení!$B$18 -> 2018 | B6: 3 | C6: 2018-01-02 | D6: Odběratel 3 | E6: 20000 | F6: 2018-02-15 | I6: 2020 | J6: 0 | L6: Nápověda
A7: =Nastavení!$B$18 -> 2018 | B7: 4 | C7: 2018-02-03 | D7: Odběratel 4 | E7: 25000 | F7: 2018-02-07 | I7: 2021 | J7: 0 | L7: Nejdřív vygeneruj fakturu a ulož si ji do PDF, poté ji přepiš do toho přehledu, tedy datum vystavení, odběratel, suma a následně datum splacení. Číslo následující faktury se zvýší o jedno.
A8: =Nastavení!$B$18 -> 2018 | B8: 5 | C8: 2018-03-01 | D8: Odběratel 1 | E8: 15000 | F8: 2018-03-16 | I8: 2022 | J8: 0
A9: =Nastavení!$B$18 -> 2018 | B9: 6 | C9: 2018-03-02 | D9: Odběratel 1 | E9: 20000 | F9: 2018-03-14 | I9: 2023 | J9: 0
A10: =Nastavení!$B$18 -> 2018 | B10: 7 | C10: 2018-04-03 | D10: Odběratel 2 | E10: 25000 | F10: 2018-04-09 | I10: 2024 | J10: 0
A11: =Nastavení!$B$18 -> 2018 | B11: 8 | C11: 2018-04-03 | D11: Odběratel 2 | E11: 10000 | F11: 2018-05-03 | I11: 2025 | J11: 0 | L11: Na konci roku přepiš celkový součet do tabulky Obraty, ze které se generuje graf obratů.
A12: =Nastavení!$B$18 -> 2018 | B12: 9 | C12: 2018-05-03 | D12: Odběratel 4 | E12: 10000 | F12: 2018-05-11 | I12: 2026 | J12: 0
A13: =Nastavení!$B$18 -> 2018 | B13: 10 | I13: 2027 | J13: 0
A14: =Nastavení!$B$18 -> 2018 | I14: 2028 | J14: 0
A15: =Nastavení!$B$18 -> 2018
A16: =Nastavení!$B$18 -> 2018
A17: =Nastavení!$B$18 -> 2018
A18: =Nastavení!$B$18 -> 2018
A19: =Nastavení!$B$18 -> 2018
A20: =Nastavení!$B$18 -> 2018
A21: =Nastavení!$B$18 -> 2018
A22: =Nastavení!$B$18 -> 2018
A23: =Nastavení!$B$18 -> 2018
A24: =Nastavení!$B$18 -> 2018
A25: =Nastavení!$B$18 -> 2018
A26: =Nastavení!$B$18 -> 2018
A27: =Nastavení!$B$18 -> 2018
A28: =Nastavení!$B$18 -> 2018
A29: =Nastavení!$B$18 -> 2018
A30: =Nastavení!$B$18 -> 2018
A31: =Nastavení!$B$18 -> 2018
A32: =Nastavení!$B$18 -> 2018
A33: =Nastavení!$B$18 -> 2018
A34: =Nastavení!$B$18 -> 2018 | B34: =IF(C33="","",B33+1) -> 
A35: =Nastavení!$B$18 -> 2018
A36: =Nastavení!$B$18 -> 2018
A37: =Nastavení!$B$18 -> 2018
A38: =Nastavení!$B$18 -> 2018
A39: =Nastavení!$B$18 -> 2018
A40: =Nastavení!$B$18 -> 2018
A41: =Nastavení!$B$18 -> 2018
A42: =Nastavení!$B$18 -> 2018
A43: =Nastavení!$B$18 -> 2018
A44: Celkem za rok: | E44: =SUM(E4:E43) -> 150000

Sheet Faktura
A1: FAKTURA VYDANÁ | D1: =Nastavení!B18*10000+MAX(Přehledy!B4,Přehledy!B4:B43) -> 20180010 | J1: Nápověda | Q1: Pomocná data
J2: Něměň nic v hlavičce faktury, pouze vyber ze seznamu Odběratele. Ty jsou nastaveni na kartě Odběratelé. Ostatní parametry jsou na kartě Nastavení | Q2: QR Platba
A3: DODAVATEL | F3: ODBĚRATEL | Q3: =Q12&""&Q5&""&Nastavení!B9&""&Q6&""&Nastavení!B10&""&Q7&""&G38&""&Q8&""&Q9&""&C14&""&Q10&""&J13&""&Q11 -> http://api.paylibo.com/paylibo/generator/czech/image?accountNumber=1234567890&bankCode=2010&amount=250&currency=CZK&vs=20180010&message=Platba za fakturu&size=200
A4: =Nastavení!B3 -> Jméno Příjmení | F4: =VLOOKUP(Odběratelé!L1,Odběratelé!A2:G10,2,FALSE) -> Odběratel 2 | J4: V těle faktury vyber na patřičném řádku činnost/položku, pokud není v číselníku, lze jki dopsat ručně do modrého políčka vpravo. Ruční záznam má vždy přednost, defaultně je zadaná mezera v ručním zadání
A5: =Nastavení!B4 -> Žlutá 33 | F5: =VLOOKUP(Odběratelé!L1,Odběratelé!A2:G10,3,FALSE) -> Červená 44 | Q5: accountNumber=
A6: =Nastavení!B5 -> Plzeň | F6: =VLOOKUP(Odběratelé!L1,Odběratelé!A2:G10,4,FALSE) -> Plzeň | Q6: &bankCode=
A7: =Nastavení!B6 -> 30100 | F7: =VLOOKUP(Odběratelé!L1,Odběratelé!A2:G10,5,FALSE) -> 301 00 | J7: Cena musí být zadána u ručního zadání | Q7: &amount=
Q8: &currency=CZK
A9: IČO | C9: =Nastavení!B7 -> 88888888 | F9: IČO | G9: =VLOOKUP(Odběratelé!L1,Odběratelé!A2:G10,6,FALSE) -> 55667788 | J9: Pokud je faktura kompletní, lze vygenerovat QR kód pro rychlo QR platbu, stačí stiknout klávesou kombinaci CTRL+Q. Nezapoměň QR obrázek u další faktury vymazat a znovu vygenerovat. | Q9: &vs=
A10: =IF(Nastavení!B8>0,"DIČ"," ") ->  | C10: =IF(Nastavení!B8>0,Nastavení!B8," ") ->  | F10: DIČ | G10: =VLOOKUP(Odběratelé!L1,Odběratelé!A2:G10,7,FALSE) -> CZ55667788 | Q10: &message=
A11: BANKOVNÍ ÚČET | C11: =Nastavení!B9&""&Nastavení!P20&""&Nastavení!B10 -> 1234567890/2010 | Q11: &size=200
A12: IBAN | C12: =Nastavení!B11 -> CZ8520100000001234567890 | F12: DATUM VYSTAVENÍ | H12: =TODAY() -> 2020-07-08 | J12: Text pro příjemce do QR kódu | Q12: http://api.paylibo.com/paylibo/generator/czech/image?
A13: SWIFT | C13: =Nastavení!B12 -> FIOBCZPPXXX | F13: DATUM SPLATNOSTI | H13: =H12+MAX(Nastavení!P3:P7) -> 2020-08-07 | J13: Platba za fakturu
A14: VARIABILNÍ SYMBOL | C14: =D1 -> 20180010
A15: ZPŮSOB ÚHRADY | C15: =Nastavení!B17 -> Převodem
N17: Ruční zadání
A18: Fakturujeme Vám následující položky | N18: Název položky | O18: Cena
A19: =IF(N19=0,VLOOKUP(Činnosti!N44,Činnosti!$A$43:$J$58,2,FALSE),N19) -> 
A20: =IF(N20=0,VLOOKUP(Činnosti!N45,Činnosti!$A$43:$J$58,2,FALSE),N20) -> 
E21: Množství | F21: MJ | G21: Cena za MJ | H21: Cena
A22: =IF(N22=0,VLOOKUP(Činnosti!N6,Činnosti!$A$6:$J$40,2,FALSE),N22) -> Diagnostika problému | E22: 1 | F22: ks | G22: =IF(N22=0,IF(Činnosti!P6=0,"",Činnosti!P6),O22) -> 250 | H22: =IF(E22>0,E22*G22,"") -> 250
A23: =IF(N23=0,VLOOKUP(Činnosti!N7,Činnosti!$A$6:$J$40,2,FALSE),N23) ->  | G23: =IF(N23=0,IF(Činnosti!P7=0,"",Činnosti!P7),O23) ->  | H23: =IF(E23>0,E23*G23,"") -> 
A24: =IF(N24=0,VLOOKUP(Činnosti!N8,Činnosti!$A$6:$J$40,2,FALSE),N24) ->  | G24: =IF(N24=0,IF(Činnosti!P8=0,"",Činnosti!P8),O24) -> 
A25: =IF(N25=0,VLOOKUP(Činnosti!N9,Činnosti!$A$6:$J$40,2,FALSE),N25) ->  | G25: =IF(N25=0,IF(Činnosti!P9=0,"",Činnosti!P9),O25) ->  | H25: =IF(E25>0,E25*G25,"") -> 
A26: =IF(N26=0,VLOOKUP(Činnosti!N10,Činnosti!$A$6:$J$40,2,FALSE),N26) ->  | G26: =IF(N26=0,IF(Činnosti!P10=0,"",Činnosti!P10),O26) -> 
A27: =IF(N27=0,VLOOKUP(Činnosti!N11,Činnosti!$A$6:$J$40,2,FALSE),N27) ->  | G27: =IF(N27=0,IF(Činnosti!P11=0,"",Činnosti!P11),O27) -> 
A28: =IF(N28=0,VLOOKUP(Činnosti!N12,Činnosti!$A$6:$J$40,2,FALSE),N28) ->  | G28: =IF(N28=0,IF(Činnosti!P12=0,"",Činnosti!P12),O28) -> 
A29: =IF(N29=0,VLOOKUP(Činnosti!N13,Činnosti!$A$6:$J$40,2,FALSE),N29) ->  | G29: =IF(N29=0,IF(Činnosti!P13=0,"",Činnosti!P13),O29) -> 
A30: =IF(N30=0,VLOOKUP(Činnosti!N14,Činnosti!$A$6:$J$40,2,FALSE),N30) ->  | G30: =IF(N30=0,IF(Činnosti!P14=0,"",Činnosti!P14),O30) -> 
A31: =IF(N31=0,VLOOKUP(Činnosti!N15,Činnosti!$A$6:$J$40,2,FALSE),N31) ->  | G31: =IF(N31=0,IF(Činnosti!P15=0,"",Činnosti!P15),O31) ->  | H31: =IF(E31>0,E31*G31,"") -> 
A32: =IF(N32=0,VLOOKUP(Činnosti!N16,Činnosti!$A$6:$J$40,2,FALSE),N32) ->  | G32: =IF(N32=0,IF(Činnosti!P16=0,"",Činnosti!P16),O32) -> 
A33: =IF(N33=0,VLOOKUP(Činnosti!N17,Činnosti!$A$6:$J$40,2,FALSE),N33) ->  | G33: =IF(N33=0,IF(Činnosti!P17=0,"",Činnosti!P17),O33) -> 
A34: =IF(N34=0,VLOOKUP(Činnosti!N18,Činnosti!$A$6:$J$40,2,FALSE),N34) ->  | G34: =IF(N34=0,IF(Činnosti!P18=0,"",Činnosti!P18),O34) -> 
A35: =IF(N35=0,VLOOKUP(Činnosti!N19,Činnosti!$A$6:$J$40,2,FALSE),N35) ->  | G35: =IF(N35=0,IF(Činnosti!P19=0,"",Činnosti!P19),O35) -> 
A36: =IF(N36=0,VLOOKUP(Činnosti!N15,Činnosti!$A$6:$J$40,2,FALSE),N36) -> 
A37: =Q3 -> http://api.paylibo.com/paylibo/generator/czech/image?accountNumber=1234567890&bankCode=2010&amount=250&currency=CZK&vs=20180010&message=Platba za fakturu&size=200 | B37: =Q3 -> http://api.paylibo.com/paylibo/generator/czech/image?accountNumber=1234567890&bankCode=2010&amount=250&currency=CZK&vs=20180010&message=Platba za fakturu&size=200 | D37: =IF(J37=TRUE,"Sleva v %"," ") ->  | J37: FALSE
D38: Celkem k úhradě | G38: =SUM(H22:H24)-SUM(H22:H24)*H37 -> 250

Sheet QR Platba
B1: Banka | C1: Ćíslo účtu | D1: Kód banky | F1: Nápověda | G1: Pomocná data
A2: 1 | B2: FIO banka | C2: 1234567890 | D2: 2010 | F2: Tento list slouží pro rychlé vygenerování QR platby | G2: QR Platba
A3: 2 | B3: AirBank | C3: 1234567890 | D3: 3030 | F3: Lze vybrat ze dvou nadefinovaných účtů, vyplň částku, VS a zprávu a vygeneruj QR přes CTRL+W | G3: =G12&""&G5&""&G13&""&G6&""&G14&""&G7&""&C6&""&G8&""&G9&""&C14&""&G10&""&C8&""&C14&""&G11 -> http://api.paylibo.com/paylibo/generator/czech/image?accountNumber=1234567890&bankCode=3030&amount=100&currency=CZK&vs=&message=Platba za perfektní nápad&size=200
B5: Účet | C5: 2 | F5: Obrázek pak lze poslat třeba emailem nebo vytisknout, stačí jej zkopírovat a následně vložit | G5: accountNumber=
B6: Částka | C6: 100 | G6: &bankCode=
B7: VS | C7: 123456 | G7: &amount=
B8: Zpráva | C8: Platba za perfektní nápad | G8: &currency=CZK
G9: &vs=
B10: Vygeneruj QR platbu stiskem CTRL+W | G10: &message=
G11: &size=200
G12: http://api.paylibo.com/paylibo/generator/czech/image?
G13: =VLOOKUP(C5,A2:D3,3,FALSE) -> 1234567890
G14: =VLOOKUP(C5,A2:D3,4,FALSE) -> 3030
B15: =G3 -> http://api.paylibo.com/paylibo/generator/czech/image?accountNumber=1234567890&bankCode=3030&amount=100&currency=CZK&vs=&message=Platba za perfektní nápad&size=200

Sheet Výkaz servisních prací
A2: Výkaz servisních prací
A3: Datum | B3: Hodin | C3: Popis činností
A36: Celkem:

Sheet GDPR souhlas
A1: P R O H L Á Š E N Í
A2: Souhlas se zpracováním osobních údajů
A3: podle zákona č. 101/2000 Sb., zákon o ochraně osobních údajů a o změně některých zákonů, v platném znění (dále jen zákon)
A6: Svým podpisem uděluji souhlas se zpracování osobních údajů pro potřeby vytvoření faktury za dodané zboží nebo služby. Osobní údaje mohou být zpracovávány a uchovávány v následujícím rozsahu: vytvoření a předání faktury mě jakožto odběrateli, uchování faktury na zabezpečeném úložišti dodavatele bez přístupu jiné než pověřené osoby a to především pro potřeby finančního úřadu a dalších kontrolních institucí. Poskytnutí osobních údajů je dobrovolné a mohu svůj souhlas kdykoli odvolat .
A8: V ________________ dne ____________ podpis ___________________________

Sheet Odběratelé
A1: ID | B1: Odběratel | C1: Ulice | D1: Město | E1: PSČ | F1: IČ | G1: DIČ | H1: Kontaktní osoba | I1: Email | J1: Předmět | K1: Vybraný Odběratel | L1: 2
A2: 1 | B2: Odběratel 1 | C2: Modrá 66 | D2: Brno | E2: 60200 | F2: 11223344 | G2: CZ11223344 | H2: Tomáš Novák | I2: info@firma1.cz | J2: Faktura - listopad
A3: 2 | B3: Odběratel 2 | C3: Červená 44 | D3: Plzeň | E3: 301 00 | F3: 55667788 | G3: CZ55667788 | H3: Lucie Tomanová | I3: info@firma2.cz | J3: Faktura - listopad
A4: 3 | B4: Odběratel 3 | C4: Fialová 15 | D4: Praha 9 | E4: 190 00 | F4: 11002299 | G4: CZ11002299 | H4: Jana Navrátilová | I4: info@firma3.cz | J4: Práce na síti a PC pro pobočku
A5: 4 | B5: Odběratel 4 | C5: Oranžová 34 | D5: Pardubice | E5: 53002 | F5: 33884477 | H5: Jan Tomek | I5: info@firma4.cz
A6: 5
A7: 6
A8: 7
A9: 8
A10: 9
A11: 10
A12: 11
A13: 12
A14: 13
A15: 14
A16: 15
A17: 16
A18: 17
A19: 18
A20: 19
A21: 20
A22: 21
A23: 22
A24: 23
A25: 24
A26: 25
A27: 26
A28: 27
A29: 28
A30: 29

Sheet Činnosti
B1: Hodinová sazba 1 | C1: 500 | E1: Minutová sazba | F1: =C1/60 -> 8.333333333 | L1: Nápověda | M1: Pomocná data
B2: Hodinová sazba 2 | C2: 400 | E2: Minutová sazba | F2: =C2/60 -> 6.666666667 | L2: Do sekce Činností doplň běžně používané činnosti a do sekce texty běžně používané texty v horní části faktury. Do faktury se propisuje Pevná sazba, pro odhadnutí pevné sazby pak slouží výpočtová část Spočtená sazba.
A5: ID | B5: Název činnosti | G5: Typ sazby | H5: Čas v min | I5: Spočtená sazba | J5: Pevná sazba | M5: Zvolené činnosti na faktuře | P5: Ceny
A6: 1 | M6: Řádek 1 | N6: 2 | P6: =VLOOKUP(N6,$A$6:$J$40,10,FALSE) -> 250
A7: 2 | B7: Diagnostika problému | G7: 1 | H7: 30 | I7: =IF(G7=1,$F$1,0)*H7+IF(G7=2,$F$2,0)*H7 -> 250 | J7: 250 | M7: Řádek 2 | N7: 1 | P7: =VLOOKUP(N7,$A$6:$J$40,10,FALSE) -> 0
A8: 3 | B8: Demontáž zařízení | G8: 1 | H8: 60 | I8: =IF(G8=1,$F$1,0)*H8+IF(G8=2,$F$2,0)*H8 -> 500 | J8: 500 | M8: Řádek 3 | N8: 1 | P8: 0
A9: 4 | B9: Doprava, příprava materiálu | G9: 0 | H9: 0 | I9: =IF(G9=1,$F$1,0)*H9+IF(G9=2,$F$2,0)*H9 -> 0 | J9: 10 | M9: Řádek 4 | N9: 1 | P9: 0
A10: 5 | B10: Funkční zkouška | G10: 1 | H10: 20 | I10: =IF(G10=1,$F$1,0)*H10+IF(G10=2,$F$2,0)*H10 -> 166.6666667 | J10: 200 | M10: Řádek 5 | N10: 1 | P10: 0
A11: 6 | B11: Funkční zkouška UPS | G11: 1 | H11: 10 | I11: =IF(G11=1,$F$1,0)*H11+IF(G11=2,$F$2,0)*H11 -> 83.33333333 | J11: 70 | M11: Řádek 6 | N11: 1 | P11: 0
A12: 7 | B12: Instalace a konfigurace software | G12: 1 | H12: 30 | I12: 250 | J12: 300 | M12: Řádek 7 | N12: 1 | P12: 0
A13: 8 | B13: Montážní materiál | G13: 0 | H13: 0 | I13: 0 | J13: 150 | M13: Řádek 8 | N13: 1 | P13: 0
A14: 9 | B14: Poradenská činnost v IT | G14: 2 | H14: 60 | I14: 400 | J14: 400 | M14: Řádek 9 | N14: 1 | P14: 0
A15: 10 | B15: Poradenství v oblasti informačních technologií | G15: 1 | H15: 20 | I15: 166.6666667 | J15: 150 | M15: Řádek 10 | N15: 1 | P15: 0
A16: 11 | M16: Řádek 11 | N16: 1 | P16: 0
A17: 12 | M17: Řádek 12 | N17: 1 | P17: 0
A18: 13 | M18: Řádek 13 | N18: 1 | P18: 0
A19: 14 | M19: Řádek 14 | N19: 1 | P19: 0
A20: 15 | M20: Řádek 15
A21: 16 | M21: Řádek 16
A22: 17 | M22: Řádek 17
A23: 18 | M23: Řádek 18
A24: 19 | M24: Řádek 19
A25: 20 | M25: Řádek 20
A26: 21 | M26: Řádek 21
A27: 22 | M27: Řádek 22
A28: 23 | M28: Řádek 23
A29: 24 | M29: Řádek 24
A30: 25 | M30: Řádek 25
A31: 26 | M31: Řádek 26
A32: 27 | M32: Řádek 27
A33: 28 | M33: Řádek 28
A34: 29 | M34: Řádek 29
A35: 30 | M35: Řádek 30
A36: 31 | M36: Řádek 31
A37: 32 | M37: Řádek 32
A38: 33 | M38: Řádek 33
A39: 34 | M39: Řádek 34
A40: 35 | M40: Řádek 35
A42: TEXTY
A43: 1 | M43: Řádek 1 | N43: 1
A44: 2 | B44: Tento doklad slouží jako potvrzení o nabytí licence, proto si jej řádně uchovejte | M44: Řádek 2 | N44: 1
A45: 3 | B45: Pozor změna bankovního účtu na 1234567890/000 | M45: Řádek 3 | N45: 1
A46: 4 | M46: Řádek 4
A47: 5 | M47: Řádek 5
A48: 6 | M48: Řádek 6
A49: 7 | M49: Řádek 7
A50: 8 | M50: Řádek 8
A51: 9 | M51: Řádek 9
A52: 10 | M52: Řádek 10
A53: 11 | M53: Řádek 11
A54: 12 | M54: Řádek 12
A55: 13 | M55: Řádek 13
A56: 14 | M56: Řádek 14
A57: 15 | M57: Řádek 15
A58: 16 | M58: Řádek 16
A59: 17 | M59: Řádek 17
A60: 18 | M60: Řádek 18
A61: 19 | M61: Řádek 19
A62: 20 | M62: Řádek 20
A63: 21 | M63: Řádek 21

Sheet Nastavení
A1: Nastavení dat pro generování | E1: Nápověda | O1: Pomocná data
E2: Tento sešit obsahuje následující listy | O2: Číselník splatnost
A3: OSVČ subjekt | B3: Jméno Příjmení | E3: Přehledy | I3: Odběratelé | O3: 5 dní | P3: =IF($B$16="5 dní",5,0) -> 0
A4: Ulice | B4: Žlutá 33 | E4: Zde je seznam všech vydaných faktur v daném roce a pak součty jednotlivých roků, ze kterých je generován graf obratu. | I4: Zde je seznam odběratelů, zde bere faktura v úvahu fakturace pravidelným odběratelům | O4: 7 dní | P4: =IF($B$16="7 dní",7,0) -> 0
A5: Město | B5: Plzeň | O5: 14 dní | P5: =IF($B$16="14 dní",14,0) -> 0
A6: PSČ | B6: 30100 | O6: 1 měsíc | P6: =IF($B$16="1 měsíc",30,0) -> 30
A7: IČ | B7: 88888888 | E7: Faktura | I7: Činnosti | O7: 2 měsíce | P7: =IF($B$16="2 měsíce",60,0) -> 0
A8: DIČ | E8: V hlavičce faktury je rozbalovací menu, ze kterého je možné vybrat Odběratele ze seznamu Odběratelů. Údaje se pak automaticky doplní do hlavičky faktury. | I8: Zde je seznam činností a položek, které se pak vybírají v seznamu do těla faktury
A9: Bankovní účet | B9: 1234567890 | O9: Číselník úhrada
A10: Kód banky | B10: 2010 | O10: Převodem
A11: IBAN | B11: CZ8520100000001234567890 | E11: Do těla faktury se pak vybírají činnosti z číselníku Činností, případně se dá položka napsat ručně do označeného políčka vporavo od těla faktury | O11: Hotově
A12: SWIFT | B12: FIOBCZPPXXX
A13: Telefon | B13: 724000000 | O13: Omezení Fakturocelu
A14: Email | B14: info@poskytovalemailu.cz | O14: Odběratelů | P14: 29
A15: WEB | B15: www.mojewebovestranky.cz | E15: Do faktury je možné vygenerovat QR kód pro platbu a to přes makro - ZDE doplnit postup | K15: Záhlaví tabulek | O15: Činností | P15: 35
A16: Splatnost FA | B16: 1 měsíc | O16: Textů | P16: 20
A17: Způsob úhrady | B17: Převodem | K17: Popisky v tabulce | O17: Faktur | P17: 40
A18: Aktuální rok | B18: 2018 | E18: Nastavení | O18: Položek na faktuře | P18: 15
E19: Jde o tento list. Vyplň všechny potřebné hodnoty, které se pak dále propisují, kde je potřeba a to včetně loga a podpisu. | K19: Políčka, které lze upravovat
A20: Logo | O20: Lomítklo do čísla účtu | P20: /
A21: Podpis
